Workbook

Sheet Saisie
B1: CALCULER L'IMPOT SUR LES DONATIONS | M1: 2023
C4: Lieu de domicile fiscal du donateur (celui qui donne)
C6: Lien de parenté
C7: - Le donateur donne à son(sa) ou à un
C9: Montant donné (Espèces - titres - autres biens mobiliers)
C11: Immeuble vaudois
C12: Commune de situation de l'immeuble
C14: Estimation fiscale de l'immeuble actuelle
C16: Dette hypothécaire transmise au jour de la donation
C19: Autres montants mis à charge du donataire (celui qui reçoit)
C21: Donations antérieures faites à la même personne
C22: (Montant(s) déjà imposé à l'impôt sur les donations)
B25: Récapitulatif
C26: Immeuble | E26: Estimation
C27: Commune | E27: fiscale | G27: le 80 % | O27: Montant
C28: =IF($M$12="","",$M$12) ->  | E28: =IF(AND(C28="",$M$14=""),"",$M$14) ->  | G28: =IF($E$28="","",$E$28*80%) ->  | O28: =IF($M$12="Non Vaudois",0,IF($M$12="",0,$G$28)) -> 0
C30: Biens mobiliers | G30: =IF($M$4="Non Vaudois","Imposable au canton-pays de domicile",IF($M$4="","Veuillez indiquer le domicile du donateur","")) -> Veuillez indiquer le domicile du donateur | O30: =IF($M$4="Non Vaudois",0,IF($M$4="",0,$M$9)) -> 0
C31: A déduire
C32: Dette hypothécaire | O32: =IF($M$12="Sans immeuble",0,$M$16) -> 0
C33: Autres charges | O33: =$M$19 -> 0
G35: Montant soumis à l'impôt de donation | O35: =TRUNC($O$28+$O$30-$O$32-$O$33,-3) -> 0
G36: arrondi aux mille francs inférieurs
B38: RESULTAT
B39: Calcul de l'impôt sur les donations
E41: Montant | I41: Taux | K41: %
E42: Soumis | G42: Au taux de | I42: canton | K42: communal | M42: Répartition | O42: Impôts dû
C43: Impôt cantonal | E43: =IF(DECOMPTE_DONATIONS!$N$17=0,"",DECOMPTE_DONATIONS!$N$17) ->  | G43: =IF(DECOMPTE_DONATIONS!$O$17=0,"",DECOMPTE_DONATIONS!$O$17) ->  | I43: =IF($E$43="","",DECOMPTE_DONATIONS!$E$17) ->  | O43: =IF($I$43="exonéré","exonéré",DECOMPTE_DONATIONS!$F$20) -> 0
F44: =IF($N$22="","","y.c. donations antérieures") -> 
C46: =IF(DECOMPTE_DONATIONS!$C$23=0,"",DECOMPTE_DONATIONS!$C$23) ->  | K46: =IF(M7="Epoux-se","",DECOMPTE_DONATIONS!$H$17) ->  | M46: =DECOMPTE_DONATIONS!$E$23 ->  | O46: =IF(M7="Epoux-se","",DECOMPTE_DONATIONS!$F$23) -> 
B47: =IF(M7="Epoux-se","Les époux-se et partenaires enregistrés sont exonérés de l'impôt sur les donations","") -> 
C48: =DECOMPTE_DONATIONS!$C$24 ->  | K48: =IF(M7="Epoux-se","",DECOMPTE_DONATIONS!$I$17) ->  | M48: =DECOMPTE_DONATIONS!$E$24 ->  | O48: =IF(M7="Epoux-se","",DECOMPTE_DONATIONS!$F$24) -> 
M50: Total impôt cantonal et communal | N50: =IF(DECOMPTE_DONATIONS!$B$16=2,"*","") ->  | O50: =SUM($O$43:$O$48) -> 0
C52: =IF(DECOMPTE_DONATIONS!B16=2,"* Les petits enfants ne bénéficient pas de l'exonération de Fr. 50'000.-- applicable aux enfants selon la disposition de l'article 16, lit c bis LMSD","") -> 
C55: Les chiffres et calculs mentionnés ci-dessus sont indicatifs et n'engagent en aucun cas l'Administration cantonale des impôts

Sheet DECOMPTE_DONATIONS (hidden)
A1: Commune de domicile : | C1: =IF(Saisie!M4="Non vaudois","",IF(Saisie!M4="","",Saisie!M4)) -> 
A2: Immeubles
A3: Commune | C3: Domicile id.
A4: =Saisie!$C$28 ->  | B4: =Saisie!O28 -> 0 | C4: Oui / non
C5: =IF(A4=C1,"oui","non") -> oui
A6: Biens mobiliers | B6: =Saisie!O30 -> 0
A8: Dettes | B8: =Saisie!O32 -> 0
A9: Charges | B9: =Saisie!M19 -> 0
J10: Table barème Parenté
B11: =IF(A4="Non Vaudois",B6-B8-B9,B4+B6-B8-B9) -> 0 | J11: =IF($C$17="","",HLOOKUP($C$17,Tab_Bareme_Periode,3,FALSE)) -> 
G13: Code | H13: Taux communal | J13: Taux base | K13: Exo 50000 | L13: Spéc Pt-enfant | M13: Exo 10000 | N13: Montant | P13: Impôt
A14: Montant | B14: Parenté | C14: Barème | D14: au taux de | E14: Taux % | F14: Impôt | G14: commune | H14: =IF(C5="oui","",C1) ->  | I14: =A4 ->  | K14: taux | L14: taux | M14: taux final | N14: Soumis | O14: au taux de
A16: =$B$11 -> 0 | B16: =IF(B17="Petit-fils",2,IF(B17="Petite-fille",2,"")) -> 
A17: =Saisie!$N$22 -> 0 | B17: =IF(Saisie!$M$7="","",Saisie!$M$7) ->  | C17: =IF(OR($B$17="",$B$17="Epoux-se"),"",VLOOKUP($B$17,Tab_Lien_bareme,2,FALSE)) ->  | D17: =IF(O17=0,"",O17) ->  | E17: =M17 -> Exonéré | F17: =IF(P17=0,"",P17) ->  | G17: =IF($B$17="","",VLOOKUP($B$17,Tab_Lien_bareme,3,FALSE)) ->  | H17: =IF(H$14="","",VLOOKUP(H$14,Tab_Bareme_Commune,$G17,FALSE)) ->  | I17: =IF(OR($G17="",I$14="",I$14="Sans immeuble"),"",VLOOKUP(I$14,Tab_Bareme_Commune,$G17,FALSE)) ->  | J17: =IF($C$17="",0,VLOOKUP($D17,INDIRECT(J$11),2)) -> 0 | K17: =IF(C17="a",IF(N17<50999,"Exonéré",J17),J17) -> 0 | L17: =IF(B16=2,J17,K17) -> 0 | M17: =IF(N17<=10999,"Exonéré",L17) -> Exonéré | N17: =TRUNC(A16,-3) -> 0 | O17: =TRUNC(SUM(A16:A17),-3) -> 0 | P17: =IF(M17="Exonéré",0,ROUND(N17*M17%,1)) -> 0
F18: =SUM(F15:F17) -> 0
D19: Réduction art. 36 LMSD (oui/non) | F19: =IF(E19="oui",F18/2,"0") -> 0
D20: Total impôt cantonal | F20: =F18-F19 -> 0
C22: Communes | E22: Répartition
C23: =IF(B29="","",B29) ->  | E23: =IF(H23=0,"",H23) ->  | F23: =IF(G23=0,"",G23) ->  | G23: =IF(H17="","",ROUND((P17*H23*H17%),1)) ->  | H23: =IF(C37=0,0,ROUND(C37,4)) -> 0
C24: =IF(D29="","",D29) ->  | E24: =IF(H24=0,"",H24) ->  | F24: =IF(G24=0,0,G24) ->  | G24: =IF(I17="","",ROUND((P17*H24*I17%),1)) ->  | H24: =IF(E37=0,0,ROUND(E37,4)) -> 0
C25: Impôt total sur les donations 3 | F25: =F20+SUM(F23:F24) -> 0
A29: COMMUNE | B29: =IF(C5="oui","",C1) ->  | D29: =IF(A4="","",A4) ->  | F29: TOTAL
B30: =IF(B29="","","(domicile)") ->  | D30: Fr. | E30: % | F30: Fr.
A31: Immeubles | D31: =B4 -> 0 | F31: =IF(SUM(D31:E31)<=0,"",SUM(D31:E31)) -> 
A32: (estimation cantonale)
F33: =IF(SUM(D33:E33)<=0,"",SUM(D33:E33)) -> 
A34: Biens mobiliers | B34: =IF(C5="oui","",B6) ->  | D34: =IF(DECOMPTE_DONATIONS!O31="oui",DECOMPTE_DONATIONS!#REF!-DECOMPTE_DONATIONS!#REF!,"") ->  | F34: =SUM(B34:E34) -> 0
F35: =IF(SUM(D35:E35)<=0,"",SUM(D35:E35)) -> 
F36: =IF(SUM(D36:E36)<=0,"",SUM(D36:E36)) -> 
A37: Total actif | B37: =SUM(B31:B36) -> 0 | C37: =IF(B37=0,0,B37/F37) -> 0 | D37: =SUM(D31:D36) -> 0 | E37: =IF(D37=0,0,D37/F37) -> 0 | F37: =SUM(F30:F36) -> 0
A39: ./. Le passif | B39: =F39*C37 -> 0 | D39: =F39*E37 -> 0 | F39: =B11 -> 0
A41: FORTUNE NETTE | B41: =B37-B39 -> 0 | D41: =D37-D39 -> 0 | F41: =F37-F39 -> 0

Sheet Table_base (hidden)
B2: Tab_Bareme_Periode | D2: Tab_Bareme_Code
B3: Table des barèmes
C5: Barèmes
C6: a | D6: b | E6: c | F6: d | G6: e | H6: f | I6: Spécial | J6: Commune | K6: Coefficient IFD
C7: 1 | D7: 2 | E7: 3 | F7: 4 | G7: 5 | H7: 6 | I7: 7 | J7: 8 | K7: 9
C8: Tab_Bareme_A | D8: Tab_Bareme_B | E8: Tab_Bareme_C | F8: Tab_Bareme_D | G8: Tab_Bareme_E | H8: Tab_Bareme_F | I8: Tab_Bareme_Special | J8: Tab_Bareme_Commune | K8: Tab_Coeff_IFD
B13: Tab_Lien_parent
B14: Tab_Lien_bareme
B15: Lien parenté | C15: Lien barème | D15: Code
B16: Epoux-se | E16: 2= ascendant
B17: Fils | C17: a | D17: 3 | E17: 3= descendant
B18: Fille | C18: a | D18: 3 | E18: 4= collatéral
B19: Petit-fils | C19: a | D19: 3 | E19: 5= non parent
B20: Petite-fille | C20: a | D20: 3
B21: Descendant 1er mariage | C21: b | D21: 5
B22: Père | C22: b | D22: 2
B23: Mère | C23: b | D23: 2
B24: Grand-parent | C24: b | D24: 2
B25: Frère | C25: c | D25: 4
B26: Sœur | C26: c | D26: 4
B27: Gendre | C27: c | D27: 5
B28: Bru | C28: c | D28: 5
B29: Oncle | C29: d | D29: 4
B30: Tante | C30: d | D30: 4
B31: Neveu | C31: d | D31: 4
B32: Nièce | C32: d | D32: 4
B33: Grand-oncle | C33: e | D33: 4
B34: Grande-tante | C34: e | D34: 4
B35: Petit-neveu | C35: e | D35: 4
B36: Petite-nièce | C36: e | D36: 4
B37: Cousin germain | C37: e | D37: 4
B38: Cousine germaine | C38: e | D38: 4
B39: Issu germain | C39: e | D39: 4
B40: Sans lien de parenté | C40: f | D40: 5

Sheet Baremes (hidden)
I1: II BAREME GENERAL DE L'IMPOT | AA1: I. BAREME SPECIAL DE L'IMPOT
AA2: SUR LES SUCCESSIONS
I4: Ligne directe descendante | L4: Descendant d'un précédant mariage | O4: Frère et soeur, | R4: Oncle et tante | U4: Grand-oncle, petit-neveu, etc | X4: Autres collatéraux et | AA4: Ligne directe descendante
B5: 2023 | I5: conjoint survivant | L5: du conjoint survivant, père et mère | O5: gendre et bru | R5: Neveu et nièce | X5: personnes non apparentées | AA5: conjoint
L6: grands-p. et arrière-grands-parents
B7: Tab_Bareme_Commune_23 | I7: Tab_Bareme_A | L7: Tab_Bareme_B | O7: Tab_Bareme_C | R7: Tab_Bareme_D | U7: Tab_Bareme_E | X7: Tab_Bareme_F | AA7: Tab_Bareme_Special
B8: Barèmes communaux | I8: Barème a | L8: Barème b | O8: Barème c | R8: Barème d | U8: Barème e | X8: Barème f | AA8: Spécial
C9: Asc | D9: Desc | E9: Collat | F9: N-parent | G9: Perception | I9: (général)
B10: Commune | C10: 2 | D10: 3 | E10: 4 | F10: 5 | G10: 1=Etat | I10: Montant | J10: Taux en % | L10: Montant | M10: Taux en % | O10: Montant | P10: Taux en % | R10: Montant | S10: Taux en % | U10: Montant | V10: Taux en % | X10: Montant | Y10: Taux en % | AA10: Montant | AB10: Taux en %
G11: 2=Commune
I12: 0 | J12: exonéré | L12: 0 | M12: exonéré | O12: 0 | P12: exonéré | R12: 0 | S12: exonéré | U12: 0 | V12: exonéré | X12: 0 | Y12: exonéré | AA12: 0 | AB12: exonéré
B13: Aclens | C13: 50 | D13: 50 | E13: 100 | F13: 100 | G13: 1 | I13: 1000 | J13: exonéré | L13: 2000 | M13: exonéré | O13: 2000 | P13: exonéré | R13: 2000 | S13: exonéré | U13: 2000 | V13: exonéré | X13: 2000 | Y13: exonéré | AA13: 1000 | AB13: exonéré
B14: Agiez | C14: 30 | D14: 30 | E14: 80 | F14: 100 | G14: 1 | I14: 2000 | J14: exonéré | L14: 3000 | M14: exonéré | O14: 3000 | P14: exonéré | R14: 3000 | S14: exonéré | U14: 3000 | V14: exonéré | X14: 3000 | Y14: exonéré | AA14: 2000 | AB14: exonéré
B15: Aigle | C15: 50 | D15: 50 | E15: 100 | F15: 100 | G15: 1 | I15: 3000 | J15: exonéré | L15: 4000 | M15: exonéré | O15: 4000 | P15: exonéré | R15: 4000 | S15: exonéré | U15: 4000 | V15: exonéré | X15: 4000 | Y15: exonéré | AA15: 3000 | AB15: exonéré
B16: Allaman | C16: 50 | D16: 50 | E16: 100 | F16: 100 | G16: 1 | I16: 4000 | J16: exonéré | L16: 5000 | M16: exonéré | O16: 5000 | P16: exonéré | R16: 5000 | S16: exonéré | U16: 5000 | V16: exonéré | X16: 5000 | Y16: exonéré | AA16: 4000 | AB16: exonéré
B17: Arnex-sur-Nyon | C17: 25 | D17: 0 | E17: 25 | F17: 50 | G17: 1 | I17: 5000 | J17: exonéré | L17: 6000 | M17: exonéré | O17: 6000 | P17: exonéré | R17: 6000 | S17: exonéré | U17: 6000 | V17: exonéré | X17: 6000 | Y17: exonéré | AA17: 5000 | AB17: exonéré
B18: Arnex-sur-Orbe | C18: 100 | D18: 100 | E18: 100 | F18: 100 | G18: 1 | I18: 6000 | J18: exonéré | L18: 7000 | M18: exonéré | O18: 7000 | P18: exonéré | R18: 7000 | S18: exonéré | U18: 7000 | V18: exonéré | X18: 7000 | Y18: exonéré | AA18: 6000 | AB18: exonéré
B19: Arzier-le Muids | C19: 50 | D19: 0 | E19: 100 | F19: 100 | G19: 1 | I19: 7000 | J19: exonéré | L19: 8000 | M19: exonéré | O19: 8000 | P19: exonéré | R19: 8000 | S19: exonéré | U19: 8000 | V19: exonéré | X19: 8000 | Y19: exonéré | AA19: 7000 | AB19: exonéré
B20: Assens | C20: 0 | D20: 0 | E20: 100 | F20: 100 | G20: 1 | I20: 8000 | J20: exonéré | L20: 9000 | M20: exonéré | O20: 9000 | P20: exonéré | R20: 9000 | S20: exonéré | U20: 9000 | V20: exonéré | X20: 9000 | Y20: exonéré | AA20: 8000 | AB20: exonéré
B21: Aubonne | C21: 50 | D21: 50 | E21: 100 | F21: 100 | G21: 2 | I21: 9000 | J21: exonéré | L21: 10000 | M21: exonéré | O21: 10000 | P21: exonéré | R21: 10000 | S21: exonéré | U21: 10000 | V21: exonéré | X21: 10000 | Y21: exonéré | AA21: 9000 | AB21: exonéré
B22: Avenches | C22: 100 | D22: 0 | E22: 100 | F22: 100 | G22: 1 | I22: 10000 | J22: exonéré | L22: 11000 | M22: 2.7 | O22: 11000 | P22: 5.4 | R22: 11000 | S22: 8.1 | U22: 11000 | V22: 12.6 | X22: 11000 | Y22: 16.2 | AA22: 10000 | AB22: exonéré
B23: Ballaigues | C23: 50 | D23: 50 | E23: 100 | F23: 100 | G23: 1 | I23: 11000 | J23: 1.227 | L23: 12000 | M23: 2.75 | O23: 12000 | P23: 5.5 | R23: 12000 | S23: 8.25 | U23: 12000 | V23: 12.833 | X23: 12000 | Y23: 16.5 | AA23: 11000 | AB23: exonéré
B24: Ballens | C24: 0 | D24: 0 | E24: 100 | F24: 100 | G24: 2 | I24: 12000 | J24: 1.25 | L24: 13000 | M24: 2.792 | O24: 13000 | P24: 5.584 | R24: 13000 | S24: 8.376 | U24: 13000 | V24: 13.03 | X24: 13000 | Y24: 16.753 | AA24: 12000 | AB24: exonéré
B25: Bassins | C25: 100 | D25: 0 | E25: 100 | F25: 100 | G25: 1 | I25: 13000 | J25: 1.269 | L25: 14000 | M25: 2.828 | O25: 14000 | P25: 5.657 | R25: 14000 | S25: 8.485 | U25: 14000 | V25: 13.2 | X25: 14000 | Y25: 16.971 | AA25: 13000 | AB25: exonéré
B26: Baulmes | C26: 0 | D26: 0 | E26: 100 | F26: 100 | G26: 1 | I26: 14000 | J26: 1.285 | L26: 15000 | M26: 2.86 | O26: 15000 | P26: 5.72 | R26: 15000 | S26: 8.58 | U26: 15000 | V26: 13.346 | X26: 15000 | Y26: 17.16 | AA26: 14000 | AB26: exonéré
B27: Bavois | C27: 100 | D27: 50 | E27: 100 | F27: 100 | G27: 1 | I27: 15000 | J27: 1.3 | L27: 16000 | M27: 2.887 | O27: 16000 | P27: 5.775 | R27: 16000 | S27: 8.662 | U27: 16000 | V27: 13.475 | X27: 16000 | Y27: 17.325 | AA27: 15000 | AB27: exonéré
B28: Begnins | C28: 0 | D28: 0 | E28: 100 | F28: 100 | G28: 1 | I28: 16000 | J28: 1.312 | L28: 17000 | M28: 2.911 | O28: 17000 | P28: 5.823 | R28: 17000 | S28: 8.735 | U28: 17000 | V28: 13.588 | X28: 17000 | Y28: 17.47 | AA28: 16000 | AB28: exonéré
B29: Belmont-sur-Lausanne | C29: 100 | D29: 50 | E29: 100 | F29: 100 | G29: 1 | I29: 17000 | J29: 1.323 | L29: 18000 | M29: 2.933 | O29: 18000 | P29: 5.866 | R29: 18000 | S29: 8.8 | U29: 18000 | V29: 13.688 | X29: 18000 | Y29: 17.6 | AA29: 17000 | AB29: exonéré
B30: Belmont-sur-Yverdon | C30: 50 | D30: 50 | E30: 100 | F30: 100 | G30: 1 | I30: 18000 | J30: 1.333 | L30: 19000 | M30: 2.952 | O30: 19000 | P30: 5.905 | R30: 19000 | S30: 8.857 | U30: 19000 | V30: 13.778 | X30: 19000 | Y30: 17.715 | AA30: 18000 | AB30: exonéré
B31: Bercher | C31: 50 | D31: 50 | E31: 100 | F31: 100 | G31: 1 | I31: 19000 | J31: 1.342 | L31: 20000 | M31: 2.97 | O31: 20000 | P31: 5.94 | R31: 20000 | S31: 8.91 | U31: 20000 | V31: 13.86 | X31: 20000 | Y31: 17.82 | AA31: 19000 | AB31: exonéré
B32: Berolle | C32: 50 | D32: 50 | E32: 100 | F32: 100 | G32: 2 | I32: 20000 | J32: 1.35 | L32: 21000 | M32: 2.985 | O32: 21000 | P32: 5.971 | R32: 21000 | S32: 8.957 | U32: 21000 | V32: 13.933 | X32: 21000 | Y32: 17.914 | AA32: 20000 | AB32: exonéré
B33: Bettens | C33: 0 | D33: 0 | E33: 100 | F33: 100 | G33: 1 | I33: 21000 | J33: 1.357 | L33: 22000 | M33: 3 | O33: 22000 | P33: 6 | R33: 22000 | S33: 9 | U33: 22000 | V33: 14 | X33: 22000 | Y33: 18 | AA33: 21000 | AB33: exonéré
B34: Bex | C34: 50 | D34: 50 | E34: 100 | F34: 100 | G34: 1 | I34: 22000 | J34: 1.363 | L34: 23000 | M34: 3.013 | O34: 23000 | P34: 6.026 | R34: 23000 | S34: 9.039 | U34: 23000 | V34: 14.06 | X34: 23000 | Y34: 18.078 | AA34: 22000 | AB34: exonéré
B35: Bière | C35: 50 | D35: 50 | E35: 100 | F35: 100 | G35: 2 | I35: 23000 | J35: 1.369 | L35: 24000 | M35: 3.025 | O35: 24000 | P35: 6.05 | R35: 24000 | S35: 9.075 | U35: 24000 | V35: 14.116 | X35: 24000 | Y35: 18.15 | AA35: 23000 | AB35: exonéré
B36: Bioley-Magnoux | C36: 50 | D36: 30 | E36: 100 | F36: 100 | G36: 1 | I36: 24000 | J36: 1.375 | L36: 25000 | M36: 3.036 | O36: 25000 | P36: 6.072 | R36: 25000 | S36: 9.108 | U36: 25000 | V36: 14.168 | X36: 25000 | Y36: 18.216 | AA36: 24000 | AB36: exonéré
B37: Blonay - Saint-Légier | C37: 0 | D37: 0 | E37: 100 | F37: 100 | G37: 1 | I37: 25000 | J37: 1.38 | L37: 26000 | M37: 3.071 | O37: 26000 | P37: 6.143 | R37: 26000 | S37: 9.214 | U37: 26000 | V37: 14.333 | X37: 26000 | Y37: 18.429 | AA37: 25000 | AB37: exonéré
B38: Bofflens | C38: 40 | D38: 40 | E38: 70 | F38: 100 | G38: 1 | I38: 26000 | J38: 1.396 | L38: 27000 | M38: 3.104 | O38: 27000 | P38: 6.208 | R38: 27000 | S38: 9.313 | U38: 27000 | V38: 14.487 | X38: 27000 | Y38: 18.626 | AA38: 26000 | AB38: exonéré
B39: Bogis-Bossey | C39: 50 | D39: 0 | E39: 50 | F39: 100 | G39: 1 | I39: 27000 | J39: 1.411 | L39: 28000 | M39: 3.135 | O39: 28000 | P39: 6.27 | R39: 28000 | S39: 9.405 | U39: 28000 | V39: 14.63 | X39: 28000 | Y39: 18.81 | AA39: 27000 | AB39: exonéré
B40: Bonvillars | C40: 0 | D40: 0 | E40: 60 | F40: 100 | G40: 1 | I40: 28000 | J40: 1.425 | L40: 29000 | M40: 3.163 | O40: 29000 | P40: 6.326 | R40: 29000 | S40: 9.49 | U40: 29000 | V40: 14.762 | X40: 29000 | Y40: 18.98 | AA40: 28000 | AB40: exonéré
B41: Borex | C41: 0 | D41: 0 | E41: 100 | F41: 100 | G41: 1 | I41: 29000 | J41: 1.437 | L41: 30000 | M41: 3.19 | O41: 30000 | P41: 6.38 | R41: 30000 | S41: 9.57 | U41: 30000 | V41: 14.886 | X41: 30000 | Y41: 19.14 | AA41: 29000 | AB41: exonéré
B42: Bottens | C42: 50 | D42: 50 | E42: 100 | F42: 100 | G42: 1 | I42: 30000 | J42: 1.45 | L42: 31000 | M42: 3.214 | O42: 31000 | P42: 6.429 | R42: 31000 | S42: 9.644 | U42: 31000 | V42: 15.002 | X42: 31000 | Y42: 19.289 | AA42: 30000 | AB42: exonéré
B43: Bougy-Villars | C43: 50 | D43: 50 | E43: 100 | F43: 100 | G43: 1 | I43: 31000 | J43: 1.461 | L43: 32000 | M43: 3.238 | O43: 32000 | P43: 6.476 | R43: 32000 | S43: 9.714 | U43: 32000 | V43: 15.111 | X43: 32000 | Y43: 19.428 | AA43: 31000 | AB43: exonéré
B44: Boulens | C44: 50 | D44: 0 | E44: 50 | F44: 100 | G44: 1 | I44: 32000 | J44: 1.471 | L44: 33000 | M44: 3.26 | O44: 33000 | P44: 6.52 | R44: 33000 | S44: 9.78 | U44: 33000 | V44: 15.213 | X44: 33000 | Y44: 19.56 | AA44: 32000 | AB44: exonéré
B45: Bourg-en-Lavaux | C45: 100 | D45: 0 | E45: 100 | F45: 100 | G45: 1 | I45: 33000 | J45: 1.481 | L45: 34000 | M45: 3.28 | O45: 34000 | P45: 6.561 | R45: 34000 | S45: 9.841 | U45: 34000 | V45: 15.309 | X45: 34000 | Y45: 19.683 | AA45: 33000 | AB45: exonéré
B46: Bournens | C46: 0 | D46: 0 | E46: 0 | F46: 100 | G46: 1 | I46: 34000 | J46: 1.491 | L46: 35000 | M46: 3.3 | O46: 35000 | P46: 6.6 | R46: 35000 | S46: 9.9 | U46: 35000 | V46: 15.4 | X46: 35000 | Y46: 19.8 | AA46: 34000 | AB46: exonéré
B47: Boussens | C47: 0 | D47: 0 | E47: 100 | F47: 100 | G47: 1 | I47: 35000 | J47: 1.5 | L47: 36000 | M47: 3.318 | O47: 36000 | P47: 6.636 | R47: 36000 | S47: 9.955 | U47: 36000 | V47: 15.485 | X47: 36000 | Y47: 19.91 | AA47: 35000 | AB47: exonéré
B48: Bremblens | C48: 0 | D48: 0 | E48: 100 | F48: 100 | G48: 1 | I48: 36000 | J48: 1.508 | L48: 37000 | M48: 3.335 | O48: 37000 | P48: 6.671 | R48: 37000 | S48: 10.007 | U48: 37000 | V48: 15.566 | X48: 37000 | Y48: 20.014 | AA48: 36000 | AB48: exonéré
B49: Bretigny-sur-Morrens | C49: 0 | D49: 0 | E49: 100 | F49: 100 | G49: 2 | I49: 37000 | J49: 1.516 | L49: 38000 | M49: 3.352 | O49: 38000 | P49: 6.704 | R49: 38000 | S49: 10.056 | U49: 38000 | V49: 15.643 | X49: 38000 | Y49: 20.112 | AA49: 37000 | AB49: exonéré
B50: Bretonnières | C50: 0 | D50: 0 | E50: 80 | F50: 100 | G50: 1 | I50: 38000 | J50: 1.523 | L50: 39000 | M50: 3.367 | O50: 39000 | P50: 6.735 | R50: 39000 | S50: 10.103 | U50: 39000 | V50: 15.715 | X50: 39000 | Y50: 20.206 | AA50: 38000 | AB50: exonéré
B51: Buchillon | C51: 100 | D51: 0 | E51: 100 | F51: 100 | G51: 1 | I51: 39000 | J51: 1.53 | L51: 40000 | M51: 3.382 | O51: 40000 | P51: 6.765 | R51: 40000 | S51: 10.147 | U51: 40000 | V51: 15.785 | X51: 40000 | Y51: 20.295 | AA51: 39000 | AB51: exonéré
B52: Bullet | C52: 80 | D52: 80 | E52: 90 | F52: 100 | G52: 1 | I52: 40000 | J52: 1.537 | L52: 41000 | M52: 3.396 | O52: 41000 | P52: 6.793 | R52: 41000 | S52: 10.189 | U52: 41000 | V52: 15.85 | X52: 41000 | Y52: 20.379 | AA52: 40000 | AB52: exonéré
B53: Bursinel | C53: 0 | D53: 0 | E53: 80 | F53: 100 | G53: 1 | I53: 41000 | J53: 1.543 | L53: 42000 | M53: 3.41 | O53: 42000 | P53: 6.82 | R53: 42000 | S53: 10.23 | U53: 42000 | V53: 15.913 | X53: 42000 | Y53: 20.46 | AA53: 41000 | AB53: exonéré
B54: Bursins | C54: 50 | D54: 30 | E54: 80 | F54: 100 | G54: 1 | I54: 42000 | J54: 1.55 | L54: 43000 | M54: 3.422 | O54: 43000 | P54: 6.845 | R54: 43000 | S54: 10.268 | U54: 43000 | V54: 15.973 | X54: 43000 | Y54: 20.536 | AA54: 42000 | AB54: exonéré
B55: Burtigny | C55: 0 | D55: 0 | E55: 70 | F55: 90 | G55: 1 | I55: 43000 | J55: 1.555 | L55: 44000 | M55: 3.435 | O55: 44000 | P55: 6.87 | R55: 44000 | S55: 10.305 | U55: 44000 | V55: 16.03 | X55: 44000 | Y55: 20.61 | AA55: 43000 | AB55: exonéré
B56: Bussigny | C56: 0 | D56: 0 | E56: 100 | F56: 100 | G56: 2 | I56: 44000 | J56: 1.561 | L56: 45000 | M56: 3.446 | O56: 45000 | P56: 6.893 | R56: 45000 | S56: 10.34 | U56: 45000 | V56: 16.084 | X56: 45000 | Y56: 20.68 | AA56: 44000 | AB56: exonéré
B57: Bussy-sur-Moudon | C57: 50 | D57: 50 | E57: 100 | F57: 100 | G57: 1 | I57: 45000 | J57: 1.566 | L57: 46000 | M57: 3.457 | O57: 46000 | P57: 6.915 | R57: 46000 | S57: 10.373 | U57: 46000 | V57: 16.136 | X57: 46000 | Y57: 20.746 | AA57: 45000 | AB57: exonéré
B58: Chamblon | C58: 40 | D58: 0 | E58: 100 | F58: 100 | G58: 1 | I58: 46000 | J58: 1.571 | L58: 47000 | M58: 3.468 | O58: 47000 | P58: 6.937 | R58: 47000 | S58: 10.405 | U58: 47000 | V58: 16.186 | X58: 47000 | Y58: 20.811 | AA58: 46000 | AB58: exonéré
B59: Champagne | C59: 90 | D59: 90 | E59: 90 | F59: 100 | G59: 1 | I59: 47000 | J59: 1.576 | L59: 48000 | M59: 3.478 | O59: 48000 | P59: 6.957 | R59: 48000 | S59: 10.436 | U59: 48000 | V59: 16.234 | X59: 48000 | Y59: 20.872 | AA59: 47000 | AB59: exonéré
B60: Champtauroz | C60: 0 | D60: 0 | E60: 100 | F60: 100 | G60: 1 | I60: 48000 | J60: 1.581 | L60: 49000 | M60: 3.488 | O60: 49000 | P60: 6.977 | R60: 49000 | S60: 10.465 | U60: 49000 | V60: 16.28 | X60: 49000 | Y60: 20.931 | AA60: 48000 | AB60: exonéré
B61: Champvent | C61: 100 | D61: 100 | E61: 100 | F61: 100 | G61: 1 | I61: 49000 | J61: 1.585 | L61: 50000 | M61: 3.498 | O61: 50000 | P61: 6.996 | R61: 50000 | S61: 10.494 | U61: 50000 | V61: 16.324 | X61: 50000 | Y61: 20.988 | AA61: 49000 | AB61: exonéré
B62: Chardonne | C62: 70 | D62: 50 | E62: 100 | F62: 100 | G62: 1 | I62: 50000 | J62: 1.59 | L62: 51000 | M62: 3.52 | O62: 51000 | P62: 7.04 | R62: 51000 | S62: 10.56 | U62: 51000 | V62: 16.426 | X62: 51000 | Y62: 21.12 | AA62: 50000 | AB62: exonéré
B63: Château-d'Oex | C63: 100 | D63: 100 | E63: 100 | F63: 100 | G63: 1 | I63: 51000 | J63: 1.6 | L63: 52000 | M63: 3.541 | O63: 52000 | P63: 7.082 | R63: 52000 | S63: 10.623 | U63: 52000 | V63: 16.525 | X63: 52000 | Y63: 21.246 | AA63: 51000 | AB63: exonéré
B64: Chavannes-de-Bogis | C64: 0 | D64: 0 | E64: 50 | F64: 100 | G64: 1 | I64: 52000 | J64: 1.609 | L64: 53000 | M64: 3.561 | O64: 53000 | P64: 7.123 | R64: 53000 | S64: 10.684 | U64: 53000 | V64: 16.62 | X64: 53000 | Y64: 21.369 | AA64: 52000 | AB64: exonéré
B65: Chavannes-des-Bois | C65: 0 | D65: 0 | E65: 100 | F65: 100 | G65: 1 | I65: 53000 | J65: 1.618 | L65: 54000 | M65: 3.581 | O65: 54000 | P65: 7.162 | R65: 54000 | S65: 10.743 | U65: 54000 | V65: 16.711 | X65: 54000 | Y65: 21.486 | AA65: 53000 | AB65: exonéré
B66: Chavannes-le-Chêne | C66: 50 | D66: 50 | E66: 100 | F66: 100 | G66: 1 | I66: 54000 | J66: 1.627 | L66: 55000 | M66: 3.6 | O66: 55000 | P66: 7.2 | R66: 55000 | S66: 10.8 | U66: 55000 | V66: 16.8 | X66: 55000 | Y66: 21.6 | AA66: 54000 | AB66: exonéré
B67: Chavannes-le-Veyron | C67: 50 | D67: 0 | E67: 75 | F67: 100 | G67: 1 | I67: 55000 | J67: 1.636 | L67: 56000 | M67: 3.618 | O67: 56000 | P67: 7.236 | R67: 56000 | S67: 10.854 | U67: 56000 | V67: 16.885 | X67: 56000 | Y67: 21.709 | AA67: 55000 | AB67: exonéré
B68: Chavannes-près-Renens | C68: 50 | D68: 50 | E68: 100 | F68: 100 | G68: 1 | I68: 56000 | J68: 1.644 | L68: 57000 | M68: 3.635 | O68: 57000 | P68: 7.271 | R68: 57000 | S68: 10.907 | U68: 57000 | V68: 16.967 | X68: 57000 | Y68: 21.814 | AA68: 56000 | AB68: exonéré
B69: Chavannes-sur-Moudon | C69: 0 | D69: 0 | E69: 0 | F69: 0 | G69: 1 | I69: 57000 | J69: 1.652 | L69: 58000 | M69: 3.652 | O69: 58000 | P69: 7.305 | R69: 58000 | S69: 10.958 | U69: 58000 | V69: 17.046 | X69: 58000 | Y69: 21.916 | AA69: 57000 | AB69: exonéré
B70: Chavornay | C70: 100 | D70: 0 | E70: 100 | F70: 100 | G70: 1 | I70: 58000 | J70: 1.66 | L70: 59000 | M70: 3.669 | O70: 59000 | P70: 7.338 | R70: 59000 | S70: 11.007 | U70: 59000 | V70: 17.122 | X70: 59000 | Y70: 22.014 | AA70: 58000 | AB70: exonéré
B71: Chêne-Pâquier | C71: 100 | D71: 100 | E71: 100 | F71: 100 | G71: 1 | I71: 59000 | J71: 1.667 | L71: 60000 | M71: 3.685 | O71: 60000 | P71: 7.37 | R71: 60000 | S71: 11.055 | U71: 60000 | V71: 17.196 | X71: 60000 | Y71: 22.11 | AA71: 59000 | AB71: exonéré
B72: Cheseaux-Noréaz | C72: 100 | D72: 100 | E72: 100 | F72: 100 | G72: 1 | I72: 60000 | J72: 1.675 | L72: 61000 | M72: 3.7 | O72: 61000 | P72: 7.4 | R72: 61000 | S72: 11.1 | U72: 61000 | V72: 17.268 | X72: 61000 | Y72: 22.201 | AA72: 60000 | AB72: exonéré
B73: Cheseaux-sur-Lausanne | C73: 50 | D73: 50 | E73: 100 | F73: 100 | G73: 1 | I73: 61000 | J73: 1.681 | L73: 62000 | M73: 3.715 | O73: 62000 | P73: 7.43 | R73: 62000 | S73: 11.145 | U73: 62000 | V73: 17.337 | X73: 62000 | Y73: 22.29 | AA73: 61000 | AB73: exonéré
B74: Chéserex | C74: 0 | D74: 0 | E74: 100 | F74: 100 | G74: 1 | I74: 62000 | J74: 1.688 | L74: 63000 | M74: 3.729 | O74: 63000 | P74: 7.459 | R74: 63000 | S74: 11.188 | U74: 63000 | V74: 17.404 | X74: 63000 | Y74: 22.377 | AA74: 62000 | AB74: exonéré
B75: Chessel | C75: 0 | D75: 0 | E75: 50 | F75: 100 | G75: 1 | I75: 63000 | J75: 1.695 | L75: 64000 | M75: 3.743 | O75: 64000 | P75: 7.486 | R75: 64000 | S75: 11.23 | U75: 64000 | V75: 17.469 | X75: 64000 | Y75: 22.46 | AA75: 63000 | AB75: exonéré
B76: Chevilly | C76: 100 | D76: 100 | E76: 100 | F76: 100 | G76: 1 | I76: 64000 | J76: 1.701 | L76: 65000 | M76: 3.756 | O76: 65000 | P76: 7.513 | R76: 65000 | S76: 11.27 | U76: 65000 | V76: 17.532 | X76: 65000 | Y76: 22.541 | AA76: 64000 | AB76: exonéré
B77: Chevroux | C77: 50 | D77: 50 | E77: 100 | F77: 100 | G77: 1 | I77: 65000 | J77: 1.707 | L77: 66000 | M77: 3.77 | O77: 66000 | P77: 7.54 | R77: 66000 | S77: 11.31 | U77: 66000 | V77: 17.593 | X77: 66000 | Y77: 22.62 | AA77: 65000 | AB77: exonéré
B78: Chexbres | C78: 100 | D78: 0 | E78: 100 | F78: 100 | G78: 1 | I78: 66000 | J78: 1.713 | L78: 67000 | M78: 3.782 | O78: 67000 | P78: 7.565 | R78: 67000 | S78: 11.348 | U78: 67000 | V78: 17.652 | X78: 67000 | Y78: 22.696 | AA78: 66000 | AB78: exonéré
B79: Chigny | C79: 50 | D79: 0 | E79: 30 | F79: 100 | G79: 2 | I79: 67000 | J79: 1.719 | L79: 68000 | M79: 3.795 | O79: 68000 | P79: 7.59 | R79: 68000 | S79: 11.385 | U79: 68000 | V79: 17.71 | X79: 68000 | Y79: 22.77 | AA79: 67000 | AB79: exonéré
B80: Clarmont | C80: 50 | D80: 50 | E80: 50 | F80: 100 | G80: 1 | I80: 68000 | J80: 1.725 | L80: 69000 | M80: 3.806 | O80: 69000 | P80: 7.613 | R80: 69000 | S80: 11.42 | U80: 69000 | V80: 17.765 | X80: 69000 | Y80: 22.841 | AA80: 68000 | AB80: exonéré
B81: Coinsins | C81: 45 | D81: 0 | E81: 70 | F81: 100 | G81: 1 | I81: 69000 | J81: 1.73 | L81: 70000 | M81: 3.818 | O81: 70000 | P81: 7.637 | R81: 70000 | S81: 11.455 | U81: 70000 | V81: 17.82 | X81: 70000 | Y81: 22.911 | AA81: 69000 | AB81: exonéré
B82: Commugny | C82: 0 | D82: 0 | E82: 100 | F82: 100 | G82: 1 | I82: 70000 | J82: 1.735 | L82: 71000 | M82: 3.829 | O82: 71000 | P82: 7.659 | R82: 71000 | S82: 11.489 | U82: 71000 | V82: 17.872 | X82: 71000 | Y82: 22.979 | AA82: 70000 | AB82: exonéré
B83: Concise | C83: 100 | D83: 100 | E83: 100 | F83: 100 | G83: 1 | I83: 71000 | J83: 1.74 | L83: 72000 | M83: 3.84 | O83: 72000 | P83: 7.681 | R83: 72000 | S83: 11.522 | U83: 72000 | V83: 17.923 | X83: 72000 | Y83: 23.045 | AA83: 71000 | AB83: exonéré
B84: Coppet | C84: 0 | D84: 0 | E84: 100 | F84: 100 | G84: 1 | I84: 72000 | J84: 1.745 | L84: 73000 | M84: 3.851 | O84: 73000 | P84: 7.703 | R84: 73000 | S84: 11.554 | U84: 73000 | V84: 17.973 | X84: 73000 | Y84: 23.109 | AA84: 72000 | AB84: exonéré
B85: Corbeyrier | C85: 100 | D85: 50 | E85: 100 | F85: 100 | G85: 1 | I85: 73000 | J85: 1.75 | L85: 74000 | M85: 3.861 | O85: 74000 | P85: 7.723 | R85: 74000 | S85: 11.585 | U85: 74000 | V85: 18.022 | X85: 74000 | Y85: 23.171 | AA85: 73000 | AB85: exonéré
B86: Corcelles-le-Jorat | C86: 40 | D86: 20 | E86: 100 | F86: 100 | G86: 1 | I86: 74000 | J86: 1.755 | L86: 75000 | M86: 3.872 | O86: 75000 | P86: 7.744 | R86: 75000 | S86: 11.616 | U86: 75000 | V86: 18.069 | X86: 75000 | Y86: 23.232 | AA86: 74000 | AB86: exonéré
B87: Corcelles-près-Concise | C87: 40 | D87: 40 | E87: 100 | F87: 100 | G87: 1 | I87: 75000 | J87: 1.76 | L87: 76000 | M87: 3.881 | O87: 76000 | P87: 7.763 | R87: 76000 | S87: 11.645 | U87: 76000 | V87: 18.115 | X87: 76000 | Y87: 23.291 | AA87: 75000 | AB87: exonéré
B88: Corcelles-près-Payerne | C88: 50 | D88: 50 | E88: 100 | F88: 100 | G88: 1 | I88: 76000 | J88: 1.764 | L88: 77000 | M88: 3.891 | O88: 77000 | P88: 7.782 | R88: 77000 | S88: 11.674 | U88: 77000 | V88: 18.16 | X88: 77000 | Y88: 23.348 | AA88: 76000 | AB88: exonéré
B89: Corseaux | C89: 100 | D89: 25 | E89: 100 | F89: 100 | G89: 1 | I89: 77000 | J89: 1.768 | L89: 78000 | M89: 3.9 | O89: 78000 | P89: 7.801 | R89: 78000 | S89: 11.702 | U89: 78000 | V89: 18.203 | X89: 78000 | Y89: 23.404 | AA89: 77000 | AB89: exonéré
B90: Corsier-sur-Vevey | C90: 100 | D90: 0 | E90: 100 | F90: 100 | G90: 1 | I90: 78000 | J90: 1.773 | L90: 79000 | M90: 3.909 | O90: 79000 | P90: 7.819 | R90: 79000 | S90: 11.729 | U90: 79000 | V90: 18.246 | X90: 79000 | Y90: 23.459 | AA90: 78000 | AB90: exonéré
B91: Cossonay | C91: 100 | D91: 50 | E91: 100 | F91: 100 | G91: 1 | I91: 79000 | J91: 1.777 | L91: 80000 | M91: 3.918 | O91: 80000 | P91: 7.837 | R91: 80000 | S91: 11.756 | U91: 80000 | V91: 18.287 | X91: 80000 | Y91: 23.512 | AA91: 79000 | AB91: exonéré
B92: Crans | C92: 0 | D92: 0 | E92: 70 | F92: 100 | G92: 1 | I92: 80000 | J92: 1.781 | L92: 81000 | M92: 3.927 | O92: 81000 | P92: 7.854 | R92: 81000 | S92: 11.782 | U92: 81000 | V92: 18.327 | X92: 81000 | Y92: 23.564 | AA92: 80000 | AB92: exonéré
B93: Crassier | C93: 0 | D93: 0 | E93: 50 | F93: 100 | G93: 1 | I93: 81000 | J93: 1.785 | L93: 82000 | M93: 3.935 | O93: 82000 | P93: 7.871 | R93: 82000 | S93: 11.807 | U93: 82000 | V93: 18.367 | X93: 82000 | Y93: 23.615 | AA93: 81000 | AB93: exonéré
B94: Crissier | C94: 50 | D94: 0 | E94: 100 | F94: 100 | G94: 1 | I94: 82000 | J94: 1.789 | L94: 83000 | M94: 3.944 | O94: 83000 | P94: 7.888 | R94: 83000 | S94: 11.832 | U94: 83000 | V94: 18.405 | X94: 83000 | Y94: 23.664 | AA94: 82000 | AB94: exonéré
B95: Cronay | C95: 20 | D95: 20 | E95: 50 | F95: 100 | G95: 1 | I95: 83000 | J95: 1.792 | L95: 84000 | M95: 3.952 | O95: 84000 | P95: 7.904 | R95: 84000 | S95: 11.856 | U95: 84000 | V95: 18.443 | X95: 84000 | Y95: 23.712 | AA95: 83000 | AB95: exonéré
B96: Croy | C96: 20 | D96: 20 | E96: 100 | F96: 100 | G96: 1 | I96: 84000 | J96: 1.796 | L96: 85000 | M96: 3.96 | O96: 85000 | P96: 7.92 | R96: 85000 | S96: 11.88 | U96: 85000 | V96: 18.48 | X96: 85000 | Y96: 23.76 | AA96: 84000 | AB96: exonéré
B97: Cuarnens | C97: 50 | D97: 50 | E97: 100 | F97: 100 | G97: 1 | I97: 85000 | J97: 1.8 | L97: 86000 | M97: 3.967 | O97: 86000 | P97: 7.935 | R97: 86000 | S97: 11.903 | U97: 86000 | V97: 18.515 | X97: 86000 | Y97: 23.806 | AA97: 85000 | AB97: exonéré
B98: Cuarny | C98: 50 | D98: 50 | E98: 100 | F98: 100 | G98: 1 | I98: 86000 | J98: 1.803 | L98: 87000 | M98: 3.975 | O98: 87000 | P98: 7.95 | R98: 87000 | S98: 11.925 | U98: 87000 | V98: 18.55 | X98: 87000 | Y98: 23.851 | AA98: 86000 | AB98: exonéré
B99: Cudrefin | C99: 100 | D99: 100 | E99: 100 | F99: 100 | G99: 1 | I99: 87000 | J99: 1.806 | L99: 88000 | M99: 3.982 | O99: 88000 | P99: 7.965 | R99: 88000 | S99: 11.947 | U99: 88000 | V99: 18.585 | X99: 88000 | Y99: 23.895 | AA99: 87000 | AB99: exonéré
B100: Cugy | C100: 0 | D100: 0 | E100: 100 | F100: 100 | G100: 2 | I100: 88000 | J100: 1.81 | L100: 89000 | M100: 3.989 | O100: 89000 | P100: 7.979 | R100: 89000 | S100: 11.968 | U100: 89000 | V100: 18.618 | X100: 89000 | Y100: 23.937 | AA100: 88000 | AB100: exonéré
B101: Curtilles | C101: 0 | D101: 0 | E101: 60 | F101: 100 | G101: 1 | I101: 89000 | J101: 1.813 | L101: 90000 | M101: 3.996 | O101: 90000 | P101: 7.993 | R101: 90000 | S101: 11.99 | U101: 90000 | V101: 18.651 | X101: 90000 | Y101: 23.98 | AA101: 89000 | AB101: exonéré
B102: Daillens | C102: 0 | D102: 0 | E102: 100 | F102: 100 | G102: 1 | I102: 90000 | J102: 1.816 | L102: 91000 | M102: 4.003 | O102: 91000 | P102: 8.007 | R102: 91000 | S102: 12.01 | U102: 91000 | V102: 18.683 | X102: 91000 | Y102: 24.021 | AA102: 90000 | AB102: exonéré
B103: Démoret | C103: 30 | D103: 30 | E103: 100 | F103: 100 | G103: 1 | I103: 91000 | J103: 1.819 | L103: 92000 | M103: 4.01 | O103: 92000 | P103: 8.02 | R103: 92000 | S103: 12.03 | U103: 92000 | V103: 18.714 | X103: 92000 | Y103: 24.061 | AA103: 91000 | AB103: exonéré
B104: Denens | C104: 100 | D104: 100 | E104: 100 | F104: 100 | G104: 1 | I104: 92000 | J104: 1.822 | L104: 93000 | M104: 4.016 | O104: 93000 | P104: 8.033 | R104: 93000 | S104: 12.05 | U104: 93000 | V104: 18.744 | X104: 93000 | Y104: 24.1 | AA104: 92000 | AB104: exonéré
B105: Denges | C105: 100 | D105: 100 | E105: 100 | F105: 100 | G105: 1 | I105: 93000 | J105: 1.825 | L105: 94000 | M105: 4.023 | O105: 94000 | P105: 8.046 | R105: 94000 | S105: 12.069 | U105: 94000 | V105: 18.774 | X105: 94000 | Y105: 24.139 | AA105: 93000 | AB105: exonéré
B106: Dizy | C106: 0 | D106: 0 | E106: 100 | F106: 100 | G106: 1 | I106: 94000 | J106: 1.828 | L106: 95000 | M106: 4.029 | O106: 95000 | P106: 8.058 | R106: 95000 | S106: 12.088 | U106: 95000 | V106: 18.804 | X106: 95000 | Y106: 24.176 | AA106: 94000 | AB106: exonéré
B107: Dompierre | C107: 50 | D107: 0 | E107: 0 | F107: 100 | G107: 1 | I107: 95000 | J107: 1.831 | L107: 96000 | M107: 4.035 | O107: 96000 | P107: 8.071 | R107: 96000 | S107: 12.106 | U107: 96000 | V107: 18.832 | X107: 96000 | Y107: 24.213 | AA107: 95000 | AB107: exonéré
B108: Donneloye | C108: 30 | D108: 30 | E108: 50 | F108: 100 | G108: 1 | I108: 96000 | J108: 1.834 | L108: 97000 | M108: 4.041 | O108: 97000 | P108: 8.083 | R108: 97000 | S108: 12.124 | U108: 97000 | V108: 18.861 | X108: 97000 | Y108: 24.249 | AA108: 96000 | AB108: exonéré
B109: Duillier | C109: 50 | D109: 0 | E109: 100 | F109: 100 | G109: 1 | I109: 97000 | J109: 1.837 | L109: 98000 | M109: 4.047 | O109: 98000 | P109: 8.095 | R109: 98000 | S109: 12.142 | U109: 98000 | V109: 18.888 | X109: 98000 | Y109: 24.285 | AA109: 97000 | AB109: exonéré
B110: Dully | C110: 30 | D110: 0 | E110: 50 | F110: 100 | G110: 1 | I110: 98000 | J110: 1.839 | L110: 99000 | M110: 4.053 | O110: 99000 | P110: 8.106 | R110: 99000 | S110: 12.16 | U110: 99000 | V110: 18.915 | X110: 99000 | Y110: 24.32 | AA110: 98000 | AB110: exonéré
B111: Echallens | C111: 50 | D111: 50 | E111: 100 | F111: 100 | G111: 1 | I111: 99000 | J111: 1.842 | L111: 100000 | M111: 4.059 | O111: 100000 | P111: 8.118 | R111: 100000 | S111: 12.177 | U111: 100000 | V111: 18.942 | X111: 100000 | Y111: 24.354 | AA111: 99000 | AB111: exonéré
B112: Echandens | C112: 0 | D112: 0 | E112: 50 | F112: 100 | G112: 2 | I112: 100000 | J112: 1.845 | L112: 101000 | M112: 4.071 | O112: 101000 | P112: 8.142 | R112: 101000 | S112: 12.213 | U112: 101000 | V112: 18.998 | X112: 101000 | Y112: 24.426 | AA112: 100000 | AB112: exonéré
B113: Echichens | C113: 100 | D113: 0 | E113: 100 | F113: 100 | G113: 1 | I113: 101000 | J113: 1.85 | L113: 102000 | M113: 4.082 | O113: 102000 | P113: 8.165 | R113: 102000 | S113: 12.248 | U113: 102000 | V113: 19.053 | X113: 102000 | Y113: 24.497 | AA113: 101000 | AB113: exonéré
B114: Eclépens | C114: 40 | D114: 0 | E114: 50 | F114: 50 | G114: 1 | I114: 102000 | J114: 1.855 | L114: 103000 | M114: 4.094 | O114: 103000 | P114: 8.189 | R114: 103000 | S114: 12.283 | U114: 103000 | V114: 19.107 | X114: 103000 | Y114: 24.567 | AA114: 102000 | AB114: exonéré
B115: Ecublens | C115: 50 | D115: 50 | E115: 100 | F115: 100 | G115: 1 | I115: 103000 | J115: 1.861 | L115: 104000 | M115: 4.105 | O115: 104000 | P115: 8.211 | R115: 104000 | S115: 12.317 | U115: 104000 | V115: 19.161 | X115: 104000 | Y115: 24.635 | AA115: 103000 | AB115: exonéré
B116: Epalinges | C116: 50 | D116: 50 | E116: 100 | F116: 100 | G116: 1 | I116: 104000 | J116: 1.866 | L116: 105000 | M116: 4.117 | O116: 105000 | P116: 8.234 | R116: 105000 | S116: 12.351 | U116: 105000 | V116: 19.213 | X116: 105000 | Y116: 24.702 | AA116: 104000 | AB116: exonéré
B117: Ependes | C117: 20 | D117: 20 | E117: 100 | F117: 100 | G117: 1 | I117: 105000 | J117: 1.871 | L117: 106000 | M117: 4.128 | O117: 106000 | P117: 8.256 | R117: 106000 | S117: 12.384 | U117: 106000 | V117: 19.264 | X117: 106000 | Y117: 24.768 | AA117: 105000 | AB117: exonéré
B118: Essertines-sur-Rolle | C118: 50 | D118: 50 | E118: 100 | F118: 100 | G118: 1 | I118: 106000 | J118: 1.876 | L118: 107000 | M118: 4.138 | O118: 107000 | P118: 8.277 | R118: 107000 | S118: 12.416 | U118: 107000 | V118: 19.314 | X118: 107000 | Y118: 24.833 | AA118: 106000 | AB118: exonéré
B119: Essertines-sur-Yverdon | C119: 50 | D119: 50 | E119: 100 | F119: 100 | G119: 2 | I119: 107000 | J119: 1.881 | L119: 108000 | M119: 4.149 | O119: 108000 | P119: 8.298 | R119: 108000 | S119: 12.448 | U119: 108000 | V119: 19.364 | X119: 108000 | Y119: 24.896 | AA119: 107000 | AB119: exonéré
B120: Etagnières | C120: 0 | D120: 0 | E120: 50 | F120: 100 | G120: 1 | I120: 108000 | J120: 1.886 | L120: 109000 | M120: 4.159 | O120: 109000 | P120: 8.319 | R120: 109000 | S120: 12.479 | U120: 109000 | V120: 19.412 | X120: 109000 | Y120: 24.958 | AA120: 108000 | AB120: exonéré
B121: Etoy | C121: 50 | D121: 0 | E121: 100 | F121: 100 | G121: 1 | I121: 109000 | J121: 1.89 | L121: 110000 | M121: 4.17 | O121: 110000 | P121: 8.34 | R121: 110000 | S121: 12.51 | U121: 110000 | V121: 19.46 | X121: 110000 | Y121: 25 | AA121: 109000 | AB121: exonéré
B122: Eysins | C122: 50 | D122: 50 | E122: 100 | F122: 100 | G122: 1 | I122: 110000 | J122: 1.895 | L122: 111000 | M122: 4.18 | O122: 111000 | P122: 8.36 | R122: 111000 | S122: 12.54 | U122: 111000 | V122: 19.506 | AA122: 110000 | AB122: exonéré
B123: Faoug | C123: 80 | D123: 80 | E123: 100 | F123: 100 | G123: 1 | I123: 111000 | J123: 1.9 | L123: 112000 | M123: 4.189 | O123: 112000 | P123: 8.379 | R123: 112000 | S123: 12.569 | U123: 112000 | V123: 19.552 | AA123: 111000 | AB123: exonéré
B124: Féchy | C124: 0 | D124: 0 | E124: 50 | F124: 100 | G124: 2 | I124: 112000 | J124: 1.904 | L124: 113000 | M124: 4.199 | O124: 113000 | P124: 8.398 | R124: 113000 | S124: 12.598 | U124: 113000 | V124: 19.597 | AA124: 112000 | AB124: exonéré
B125: Ferreyres | C125: 0 | D125: 0 | E125: 0 | F125: 0 | G125: 1 | I125: 113000 | J125: 1.908 | L125: 114000 | M125: 4.208 | O125: 114000 | P125: 8.417 | R125: 114000 | S125: 12.626 | U125: 114000 | V125: 19.641 | AA125: 113000 | AB125: exonéré
B126: Fey | C126: 0 | D126: 0 | E126: 100 | F126: 100 | G126: 1 | I126: 114000 | J126: 1.913 | L126: 115000 | M126: 4.218 | O126: 115000 | P126: 8.436 | R126: 115000 | S126: 12.654 | U126: 115000 | V126: 19.685 | AA126: 114000 | AB126: exonéré
B127: Fiez | C127: 40 | D127: 40 | E127: 70 | F127: 100 | G127: 1 | I127: 115000 | J127: 1.917 | L127: 116000 | M127: 4.227 | O127: 116000 | P127: 8.454 | R127: 116000 | S127: 12.682 | U127: 116000 | V127: 19.727 | AA127: 115000 | AB127: exonéré
B128: Fontaines-sur-Grandson | C128: 50 | D128: 50 | E128: 100 | F128: 100 | G128: 1 | I128: 116000 | J128: 1.921 | L128: 117000 | M128: 4.236 | O128: 117000 | P128: 8.472 | R128: 117000 | S128: 12.709 | U128: 117000 | V128: 19.769 | AA128: 116000 | AB128: exonéré
B129: Forel (Lavaux) | C129: 100 | D129: 0 | E129: 100 | F129: 100 | G129: 1 | I129: 117000 | J129: 1.925 | L129: 118000 | M129: 4.245 | O129: 118000 | P129: 8.49 | R129: 118000 | S129: 12.735 | U129: 118000 | V129: 19.811 | AA129: 117000 | AB129: exonéré
B130: Founex | C130: 0 | D130: 0 | E130: 100 | F130: 100 | G130: 1 | I130: 118000 | J130: 1.929 | L130: 119000 | M130: 4.253 | O130: 119000 | P130: 8.507 | R130: 119000 | S130: 12.761 | U130: 119000 | V130: 19.851 | AA130: 118000 | AB130: exonéré
B131: Froideville | C131: 0 | D131: 0 | E131: 100 | F131: 100 | G131: 1 | I131: 119000 | J131: 1.933 | L131: 120000 | M131: 4.262 | O131: 120000 | P131: 8.525 | R131: 120000 | S131: 12.787 | U131: 120000 | V131: 19.891 | AA131: 119000 | AB131: exonéré
B132: Genolier | C132: 0 | D132: 0 | E132: 50 | F132: 50 | G132: 1 | I132: 120000 | J132: 1.937 | L132: 121000 | M132: 4.27 | O132: 121000 | P132: 8.541 | R132: 121000 | S132: 12.812 | U132: 121000 | V132: 19.93 | AA132: 120000 | AB132: exonéré
B133: Giez | C133: 40 | D133: 40 | E133: 100 | F133: 100 | G133: 1 | I133: 121000 | J133: 1.941 | L133: 122000 | M133: 4.279 | O133: 122000 | P133: 8.558 | R133: 122000 | S133: 12.837 | U133: 122000 | V133: 19.969 | AA133: 121000 | AB133: exonéré
B134: Gilly | C134: 0 | D134: 0 | E134: 50 | F134: 100 | G134: 1 | I134: 122000 | J134: 1.945 | L134: 123000 | M134: 4.287 | O134: 123000 | P134: 8.574 | R134: 123000 | S134: 12.861 | U134: 123000 | V134: 20 | AA134: 122000 | AB134: exonéré
B135: Gimel | C135: 50 | D135: 50 | E135: 100 | F135: 100 | G135: 2 | I135: 123000 | J135: 1.948 | L135: 124000 | M135: 4.295 | O135: 124000 | P135: 8.59 | R135: 124000 | S135: 12.885 | AA135: 123000 | AB135: exonéré
B136: Gingins | C136: 0 | D136: 0 | E136: 25 | F136: 100 | G136: 1 | I136: 124000 | J136: 1.952 | L136: 125000 | M136: 4.303 | O136: 125000 | P136: 8.606 | R136: 125000 | S136: 12.909 | AA136: 124000 | AB136: exonéré
B137: Givrins | C137: 0 | D137: 0 | E137: 0 | F137: 100 | G137: 1 | I137: 125000 | J137: 1.956 | L137: 126000 | M137: 4.31 | O137: 126000 | P137: 8.621 | R137: 126000 | S137: 12.932 | AA137: 125000 | AB137: exonéré
B138: Gland | C138: 50 | D138: 50 | E138: 100 | F138: 100 | G138: 1 | I138: 126000 | J138: 1.959 | L138: 127000 | M138: 4.318 | O138: 127000 | P138: 8.637 | R138: 127000 | S138: 12.955 | AA138: 126000 | AB138: exonéré
B139: Gollion | C139: 50 | D139: 50 | E139: 100 | F139: 100 | G139: 1 | I139: 127000 | J139: 1.962 | L139: 128000 | M139: 4.326 | O139: 128000 | P139: 8.652 | R139: 128000 | S139: 12.978 | AA139: 127000 | AB139: exonéré
B140: Goumoëns | C140: 20 | D140: 20 | E140: 50 | F140: 100 | G140: 1 | I140: 128000 | J140: 1.966 | L140: 129000 | M140: 4.333 | O140: 129000 | P140: 8.666 | R140: 129000 | S140: 13 | AA140: 128000 | AB140: exonéré
B141: Grancy | C141: 100 | D141: 100 | E141: 100 | F141: 100 | G141: 1 | I141: 129000 | J141: 1.969 | L141: 130000 | M141: 4.34 | O141: 130000 | P141: 8.681 | R141: 130000 | S141: 13.022 | AA141: 129000 | AB141: exonéré
B142: Grandcour | C142: 0 | D142: 0 | E142: 100 | F142: 100 | G142: 1 | I142: 130000 | J142: 1.973 | L142: 131000 | M142: 4.347 | O142: 131000 | P142: 8.695 | R142: 131000 | S142: 13.043 | AA142: 130000 | AB142: exonéré
B143: Grandevent | C143: 30 | D143: 30 | E143: 50 | F143: 75 | G143: 1 | I143: 131000 | J143: 1.976 | L143: 132000 | M143: 4.355 | O143: 132000 | P143: 8.71 | R143: 132000 | S143: 13.065 | AA143: 131000 | AB143: exonéré
B144: Grandson | C144: 100 | D144: 100 | E144: 100 | F144: 100 | G144: 1 | I144: 132000 | J144: 1.979 | L144: 133000 | M144: 4.361 | O144: 133000 | P144: 8.723 | R144: 133000 | S144: 13.085 | AA144: 132000 | AB144: exonéré
B145: Grens | C145: 100 | D145: 0 | E145: 100 | F145: 100 | G145: 1 | I145: 133000 | J145: 1.982 | L145: 134000 | M145: 4.368 | O145: 134000 | P145: 8.737 | R145: 134000 | S145: 13.106 | AA145: 133000 | AB145: exonéré
B146: Gryon | C146: 0 | D146: 0 | E146: 50 | F146: 100 | G146: 2 | I146: 134000 | J146: 1.985 | L146: 135000 | M146: 4.375 | O146: 135000 | P146: 8.751 | R146: 135000 | S146: 13.126 | AA146: 134000 | AB146: exonéré
B147: Hautemorges | C147: 0 | D147: 0 | E147: 100 | F147: 100 | G147: 1 | I147: 135000 | J147: 1.988 | L147: 136000 | M147: 4.382 | O147: 136000 | P147: 8.764 | R147: 136000 | S147: 13.146 | AA147: 135000 | AB147: exonéré
B148: Henniez | C148: 0 | D148: 0 | E148: 0 | F148: 0 | G148: 1 | I148: 136000 | J148: 1.991 | L148: 137000 | M148: 4.388 | O148: 137000 | P148: 8.777 | R148: 137000 | S148: 13.166 | AA148: 136000 | AB148: exonéré
B149: Hermenches | C149: 0 | D149: 0 | E149: 90 | F149: 100 | G149: 1 | I149: 137000 | J149: 1.994 | L149: 138000 | M149: 4.395 | O149: 138000 | P149: 8.79 | R149: 138000 | S149: 13.185 | AA149: 137000 | AB149: exonéré
B150: Jongny | C150: 50 | D150: 50 | E150: 100 | F150: 100 | G150: 1 | I150: 138000 | J150: 1.997 | L150: 139000 | M150: 4.401 | O150: 139000 | P150: 8.803 | R150: 139000 | S150: 13.204 | AA150: 138000 | AB150: exonéré
B151: Jorat-Menthue | C151: 50 | D151: 50 | E151: 100 | F151: 100 | G151: 1 | I151: 139000 | J151: 2 | L151: 140000 | M151: 4.407 | O151: 140000 | P151: 8.815 | R151: 140000 | S151: 13.223 | AA151: 139000 | AB151: exonéré
B152: Jorat-Mézières | C152: 50 | D152: 50 | E152: 100 | F152: 100 | G152: 1 | I152: 140000 | J152: 2.003 | L152: 141000 | M152: 4.414 | O152: 141000 | P152: 8.828 | R152: 141000 | S152: 13.242 | AA152: 140000 | AB152: exonéré
B153: Jouxtens-Mézery | C153: 50 | D153: 0 | E153: 50 | F153: 50 | G153: 1 | I153: 141000 | J153: 2.006 | L153: 142000 | M153: 4.42 | O153: 142000 | P153: 8.84 | R153: 142000 | S153: 13.26 | AA153: 141000 | AB153: exonéré
B154: Juriens | C154: 100 | D154: 100 | E154: 100 | F154: 100 | G154: 1 | I154: 142000 | J154: 2.009 | L154: 143000 | M154: 4.426 | O154: 143000 | P154: 8.852 | R154: 143000 | S154: 13.278 | AA154: 142000 | AB154: exonéré
B155: La Chaux (Cossonay) | C155: 50 | D155: 50 | E155: 100 | F155: 100 | G155: 1 | I155: 143000 | J155: 2.011 | L155: 144000 | M155: 4.432 | O155: 144000 | P155: 8.864 | R155: 144000 | S155: 13.296 | AA155: 143000 | AB155: exonéré
B156: La Praz | C156: 50 | D156: 50 | E156: 95 | F156: 95 | G156: 1 | I156: 144000 | J156: 2.014 | L156: 145000 | M156: 4.437 | O156: 145000 | P156: 8.875 | R156: 145000 | S156: 13.313 | AA156: 144000 | AB156: exonéré
B157: La Rippe | C157: 0 | D157: 0 | E157: 50 | F157: 100 | G157: 1 | I157: 145000 | J157: 2.017 | L157: 146000 | M157: 4.443 | O157: 146000 | P157: 8.887 | R157: 146000 | S157: 13.331 | AA157: 145000 | AB157: exonéré
B158: La Sarraz | C158: 50 | D158: 0 | E158: 100 | F158: 100 | G158: 1 | I158: 146000 | J158: 2.019 | L158: 147000 | M158: 4.449 | O158: 147000 | P158: 8.898 | R158: 147000 | S158: 13.348 | AA158: 146000 | AB158: exonéré
B159: La Tour-de-Peilz | C159: 100 | D159: 0 | E159: 100 | F159: 100 | G159: 1 | I159: 147000 | J159: 2.022 | L159: 148000 | M159: 4.455 | O159: 148000 | P159: 8.91 | R159: 148000 | S159: 13.365 | AA159: 147000 | AB159: exonéré
B160: L'Abbaye (Les Bioux) | C160: 100 | D160: 50 | E160: 70 | F160: 100 | G160: 1 | I160: 148000 | J160: 2.025 | L160: 149000 | M160: 4.46 | O160: 149000 | P160: 8.921 | R160: 149000 | S160: 13.381 | AA160: 148000 | AB160: exonéré
B161: L'Abergement | C161: 50 | D161: 50 | E161: 100 | F161: 100 | G161: 1 | I161: 149000 | J161: 2.027 | L161: 150000 | M161: 4.466 | O161: 150000 | P161: 8.932 | R161: 150000 | S161: 13.398 | AA161: 149000 | AB161: exonéré
B162: Lausanne | C162: 100 | D162: 100 | E162: 100 | F162: 100 | G162: 1 | I162: 150000 | J162: 2.03 | L162: 151000 | M162: 4.475 | O162: 151000 | P162: 8.951 | R162: 151000 | S162: 13.427 | AA162: 150000 | AB162: exonéré
B163: Lavey-Morcles | C163: 50 | D163: 50 | E163: 100 | F163: 100 | G163: 1 | I163: 151000 | J163: 2.034 | L163: 152000 | M163: 4.485 | O163: 152000 | P163: 8.97 | R163: 152000 | S163: 13.456 | AA163: 151000 | AB163: exonéré
B164: Lavigny | C164: 50 | D164: 50 | E164: 100 | F164: 100 | G164: 1 | I164: 152000 | J164: 2.038 | L164: 153000 | M164: 4.494 | O164: 153000 | P164: 8.989 | R164: 153000 | S164: 13.484 | AA164: 152000 | AB164: exonéré
B165: Le Chenit (Brassus-Sentier-Orient) | C165: 100 | D165: 100 | E165: 100 | F165: 100 | G165: 1 | I165: 153000 | J165: 2.043 | L165: 154000 | M165: 4.504 | O165: 154000 | P165: 9.008 | R165: 154000 | S165: 13.512 | AA165: 153000 | AB165: exonéré
B166: Le Lieu | C166: 0 | D166: 0 | E166: 100 | F166: 100 | G166: 1 | I166: 154000 | J166: 2.047 | L166: 155000 | M166: 4.513 | O166: 155000 | P166: 9.027 | R166: 155000 | S166: 13.54 | AA166: 154000 | AB166: exonéré
B167: Le Mont-sur-Lausanne | C167: 0 | D167: 0 | E167: 100 | F167: 100 | G167: 1 | I167: 155000 | J167: 2.051 | L167: 156000 | M167: 4.522 | O167: 156000 | P167: 9.045 | R167: 156000 | S167: 13.568 | AA167: 155000 | AB167: exonéré
B168: Le Vaud | C168: 0 | D168: 0 | E168: 100 | F168: 100 | G168: 1 | I168: 156000 | J168: 2.055 | L168: 157000 | M168: 4.531 | O168: 157000 | P168: 9.063 | R168: 157000 | S168: 13.595 | AA168: 156000 | AB168: exonéré
B169: Les Clées | C169: 0 | D169: 0 | E169: 100 | F169: 100 | G169: 1 | I169: 157000 | J169: 2.059 | L169: 158000 | M169: 4.54 | O169: 158000 | P169: 9.081 | R169: 158000 | S169: 13.621 | AA169: 157000 | AB169: exonéré
B170: Leysin | C170: 50 | D170: 0 | E170: 100 | F170: 100 | G170: 1 | I170: 158000 | J170: 2.063 | L170: 159000 | M170: 4.549 | O170: 159000 | P170: 9.098 | R170: 159000 | S170: 13.648 | AA170: 158000 | AB170: exonéré
B171: Lignerolle | C171: 0 | D171: 0 | E171: 100 | F171: 100 | G171: 1 | I171: 159000 | J171: 2.067 | L171: 160000 | M171: 4.558 | O171: 160000 | P171: 9.116 | R171: 160000 | S171: 13.674 | AA171: 159000 | AB171: exonéré
B172: L'Isle | C172: 100 | D172: 100 | E172: 100 | F172: 100 | G172: 1 | I172: 160000 | J172: 2.071 | L172: 161000 | M172: 4.566 | O172: 161000 | P172: 9.133 | R172: 161000 | S172: 13.7 | AA172: 160000 | AB172: exonéré
B173: Lonay | C173: 100 | D173: 100 | E173: 100 | F173: 100 | G173: 1 | I173: 161000 | J173: 2.075 | L173: 162000 | M173: 4.575 | O173: 162000 | P173: 9.15 | R173: 162000 | S173: 13.725 | AA173: 161000 | AB173: exonéré
B174: Longirod | C174: 0 | D174: 0 | E174: 80 | F174: 100 | G174: 2 | I174: 162000 | J174: 2.079 | L174: 163000 | M174: 4.583 | O174: 163000 | P174: 9.167 | R174: 163000 | S174: 13.75 | AA174: 162000 | AB174: exonéré
B175: Lovatens | C175: 50 | D175: 50 | E175: 100 | F175: 100 | G175: 1 | I175: 163000 | J175: 2.083 | L175: 164000 | M175: 4.591 | O175: 164000 | P175: 9.183 | R175: 164000 | S175: 13.775 | AA175: 163000 | AB175: exonéré
B176: Lucens | C176: 50 | D176: 50 | E176: 100 | F176: 100 | G176: 1 | I176: 164000 | J176: 2.087 | L176: 165000 | M176: 4.6 | O176: 165000 | P176: 9.2 | R176: 165000 | S176: 13.8 | AA176: 164000 | AB176: exonéré
B177: Luins | C177: 50 | D177: 40 | E177: 100 | F177: 100 | G177: 1 | I177: 165000 | J177: 2.09 | L177: 166000 | M177: 4.608 | O177: 166000 | P177: 9.216 | R177: 166000 | S177: 13.824 | AA177: 165000 | AB177: exonéré
B178: Lully | C178: 100 | D178: 50 | E178: 100 | F178: 100 | G178: 2 | I178: 166000 | J178: 2.094 | L178: 167000 | M178: 4.616 | O178: 167000 | P178: 9.232 | R178: 167000 | S178: 13.848 | AA178: 166000 | AB178: exonéré
B179: Lussery-Villars | C179: 30 | D179: 30 | E179: 50 | F179: 100 | G179: 1 | I179: 167000 | J179: 2.098 | L179: 168000 | M179: 4.623 | O179: 168000 | P179: 9.247 | R179: 168000 | S179: 13.871 | AA179: 167000 | AB179: exonéré
B180: Lussy-sur-Morges | C180: 50 | D180: 50 | E180: 50 | F180: 100 | G180: 1 | I180: 168000 | J180: 2.101 | L180: 169000 | M180: 4.631 | O180: 169000 | P180: 9.263 | R180: 169000 | S180: 13.895 | AA180: 168000 | AB180: exonéré
B181: Lutry | C181: 0 | D181: 0 | E181: 100 | F181: 100 | G181: 1 | I181: 169000 | J181: 2.105 | L181: 170000 | M181: 4.639 | O181: 170000 | P181: 9.278 | R181: 170000 | S181: 13.918 | AA181: 169000 | AB181: exonéré
B182: Maracon | C182: 0 | D182: 0 | E182: 100 | F182: 100 | G182: 1 | I182: 170000 | J182: 2.108 | L182: 171000 | M182: 4.647 | O182: 171000 | P182: 9.294 | R182: 171000 | S182: 13.941 | AA182: 170000 | AB182: exonéré
B183: Marchissy | C183: 50 | D183: 50 | E183: 100 | F183: 100 | G183: 1 | I183: 171000 | J183: 2.112 | L183: 172000 | M183: 4.654 | O183: 172000 | P183: 9.309 | R183: 172000 | S183: 13.963 | AA183: 171000 | AB183: exonéré
B184: Mathod | C184: 100 | D184: 100 | E184: 100 | F184: 100 | G184: 1 | I184: 172000 | J184: 2.115 | L184: 173000 | M184: 4.661 | O184: 173000 | P184: 9.323 | R184: 173000 | S184: 13.985 | AA184: 172000 | AB184: exonéré
B185: Mauborget | C185: 50 | D185: 50 | E185: 100 | F185: 100 | G185: 1 | I185: 173000 | J185: 2.119 | L185: 174000 | M185: 4.669 | O185: 174000 | P185: 9.338 | R185: 174000 | S185: 14.007 | AA185: 173000 | AB185: exonéré
B186: Mauraz | C186: 50 | D186: 50 | E186: 100 | F186: 100 | G186: 1 | I186: 174000 | J186: 2.122 | L186: 175000 | M186: 4.676 | O186: 175000 | P186: 9.353 | R186: 175000 | S186: 14.029 | AA186: 174000 | AB186: exonéré
B187: Mex | C187: 50 | D187: 0 | E187: 50 | F187: 100 | G187: 1 | I187: 175000 | J187: 2.125 | L187: 176000 | M187: 4.683 | O187: 176000 | P187: 9.367 | R187: 176000 | S187: 14.051 | AA187: 175000 | AB187: exonéré
B188: Mies | C188: 0 | D188: 0 | E188: 75 | F188: 75 | G188: 1 | I188: 176000 | J188: 2.128 | L188: 177000 | M188: 4.69 | O188: 177000 | P188: 9.381 | R188: 177000 | S188: 14.072 | AA188: 176000 | AB188: exonéré
B189: Missy | C189: 50 | D189: 0 | E189: 100 | F189: 100 | G189: 1 | I189: 177000 | J189: 2.132 | L189: 178000 | M189: 4.697 | O189: 178000 | P189: 9.395 | R189: 178000 | S189: 14.093 | AA189: 177000 | AB189: exonéré
B190: Moiry | C190: 100 | D190: 100 | E190: 100 | F190: 100 | G190: 1 | I190: 178000 | J190: 2.135 | L190: 179000 | M190: 4.704 | O190: 179000 | P190: 9.409 | R190: 179000 | S190: 14.114 | AA190: 178000 | AB190: exonéré
B191: Mollens | C191: 0 | D191: 0 | E191: 80 | F191: 100 | G191: 1 | I191: 179000 | J191: 2.138 | L191: 180000 | M191: 4.711 | O191: 180000 | P191: 9.423 | R191: 180000 | S191: 14.135 | AA191: 179000 | AB191: exonéré
B192: Molondin | C192: 100 | D192: 100 | E192: 100 | F192: 100 | G192: 1 | I192: 180000 | J192: 2.141 | L192: 181000 | M192: 4.718 | O192: 181000 | P192: 9.436 | R192: 181000 | S192: 14.155 | AA192: 180000 | AB192: exonéré
B193: Montagny-près-Yverdon | C193: 70 | D193: 0 | E193: 80 | F193: 100 | G193: 1 | I193: 181000 | J193: 2.144 | L193: 182000 | M193: 4.725 | O193: 182000 | P193: 9.45 | R193: 182000 | S193: 14.175 | AA193: 181000 | AB193: exonéré
B194: Montanaire | C194: 0 | D194: 0 | E194: 100 | F194: 100 | G194: 1 | I194: 182000 | J194: 2.147 | L194: 183000 | M194: 4.731 | O194: 183000 | P194: 9.463 | R194: 183000 | S194: 14.195 | AA194: 182000 | AB194: exonéré
B195: Montcherand | C195: 0 | D195: 0 | E195: 100 | F195: 100 | G195: 1 | I195: 183000 | J195: 2.15 | L195: 184000 | M195: 4.738 | O195: 184000 | P195: 9.476 | R195: 184000 | S195: 14.215 | AA195: 183000 | AB195: exonéré
B196: Montilliez | C196: 20 | D196: 20 | E196: 100 | F196: 100 | G196: 2 | I196: 184000 | J196: 2.153 | L196: 185000 | M196: 4.744 | O196: 185000 | P196: 9.489 | R196: 185000 | S196: 14.234 | AA196: 184000 | AB196: exonéré
B197: Mont-la-Ville | C197: 0 | D197: 0 | E197: 100 | F197: 100 | G197: 1 | I197: 185000 | J197: 2.156 | L197: 186000 | M197: 4.751 | O197: 186000 | P197: 9.502 | R197: 186000 | S197: 14.253 | AA197: 185000 | AB197: exonéré
B198: Montpreveyres | C198: 100 | D198: 100 | E198: 100 | F198: 100 | G198: 1 | I198: 186000 | J198: 2.159 | L198: 187000 | M198: 4.757 | O198: 187000 | P198: 9.515 | R198: 187000 | S198: 14.272 | AA198: 186000 | AB198: exonéré
B199: Montreux | C199: 100 | D199: 80 | E199: 100 | F199: 100 | G199: 1 | I199: 187000 | J199: 2.162 | L199: 188000 | M199: 4.763 | O199: 188000 | P199: 9.527 | R199: 188000 | S199: 14.291 | AA199: 187000 | AB199: exonéré
B200: Montricher | C200: 100 | D200: 50 | E200: 100 | F200: 100 | G200: 1 | I200: 188000 | J200: 2.165 | L200: 189000 | M200: 4.77 | O200: 189000 | P200: 9.54 | R200: 189000 | S200: 14.31 | AA200: 188000 | AB200: exonéré
B201: Mont-sur-Rolle | C201: 40 | D201: 40 | E201: 100 | F201: 100 | G201: 1 | I201: 189000 | J201: 2.168 | L201: 190000 | M201: 4.776 | O201: 190000 | P201: 9.552 | R201: 190000 | S201: 14.328 | AA201: 189000 | AB201: exonéré
... 1113 more rows
